fUSD/lending_fUSD_20260227
["ID","MTS","AMOUNT","RATE_DAILY","PERIOD"]
[406835775,1772215480764,-500.0,8.552e-05,2]
[406835776,1772215480791,-161.92412969,8.552e-05,2]
[406835777,1772215480819,-500.0,8.552e-05,2]
[406835778,1772215480848,-386.88843639,8.552e-05,2]
[406835779,1772215480878,-500.0,8.552e-05,2]
[406835780,1772215480905,-500.0,8.552e-05,2]
[406835781,1772215480931,-500.0,8.552e-05,2]
[406835782,1772215480961,-500.0,8.552e-05,2]
[406835783,1772215480988,-359.76725,8.552e-05,2]
[406835784,1772215481014,-93.42647788,8.552e-05,2]
[406835785,1772215482637,-401.78802032,8.552e-05,2]
[406835786,1772215482671,-500.0,8.552e-05,2]
[406835787,1772215482706,-500.0,8.552e-05,2]
[406835788,1772215482738,-500.0,8.552e-05,2]
[406835789,1772215482770,-500.0,8.552e-05,2]
[406835790,1772215482803,-500.0,8.552e-05,2]
[406835791,1772215482835,-500.0,8.552e-05,2]
[406835792,1772215482867,-500.0,8.552e-05,2]
[406835793,1772215482899,-500.0,8.552e-05,2]
[406835794,1772215482932,-500.0,8.552e-05,2]
[406835795,1772215483094,-500.0,8.552e-05,2]
[406835796,1772215483127,-500.0,8.552e-05,2]
[406835797,1772215483161,-500.0,8.552e-05,2]
[406835798,1772215483193,-500.0,8.552e-05,2]
[406835799,1772215483225,-500.0,8.552e-05,2]
[406835800,1772215483256,-500.0,8.552e-05,2]
[406835801,1772215483287,-500.0,8.552e-05,2]
[406835802,1772215483319,-500.0,8.552e-05,2]
[406835803,1772215483349,-500.0,8.552e-05,2]
[406835804,1772215483379,-500.0,8.552e-05,2]
[406835805,1772215488614,-599.55734793,8.543e-05,2]
[406835806,1772215488648,-235.83992121,8.552e-05,2]
[406835807,1772215488679,-500.0,8.552e-05,2]
[406835808,1772215488711,-500.0,8.552e-05,2]
[406835809,1772215488742,-500.0,8.552e-05,2]
[406835810,1772215488773,-500.0,8.552e-05,2]
[406835811,1772215488804,-500.0,8.552e-05,2]
[406835812,1772215488834,-500.0,8.552e-05,2]
[406835813,1772215488866,-500.0,8.552e-05,2]
[406835814,1772215488896,-500.0,8.552e-05,2]
[406835815,1772215489019,-500.0,8.552e-05,2]
[406835816,1772215489049,-500.0,8.552e-05,2]
[406835817,1772215489080,-500.0,8.552e-05,2]
[406835818,1772215489110,-500.0,8.552e-05,2]
[406835819,1772215489140,-500.0,8.552e-05,2]
[406835820,1772215489170,-500.0,8.552e-05,2]
[406835821,1772215489200,-500.0,8.552e-05,2]
[406835822,1772215489231,-500.0,8.552e-05,2]
[406835823,1772215489262,-500.0,8.552e-05,2]
[406835824,1772215489292,-500.0,8.552e-05,2]
[406835825,1772215492079,-500.0,8.552e-05,2]
[406835826,1772215492110,-500.0,8.552e-05,2]
[406835827,1772215492140,-500.0,8.552e-05,2]
[406835828,1772215492169,-500.0,8.552e-05,2]
[406835829,1772215492199,-500.0,8.552e-05,2]
[406835830,1772215492229,-500.0,8.552e-05,2]
[406835831,1772215492258,-500.0,8.552e-05,2]
[406835832,1772215492289,-500.0,8.552e-05,2]
[406835833,1772215492320,-500.0,8.552e-05,2]
[406835834,1772215492350,-500.0,8.552e-05,2]
[406835835,1772215492480,-500.0,8.552e-05,2]
[406835836,1772215492511,-500.0,8.552e-05,2]
[406835837,1772215492542,-500.0,8.552e-05,2]
[406835838,1772215492572,-500.0,8.552e-05,2]
[406835839,1772215492603,-323.58399212,8.552e-05,2]
[406835840,1772215492636,-500.0,8.552e-05,2]
[406835841,1772215492666,-500.0,8.552e-05,2]
[406835842,1772215492696,-500.0,8.552e-05,2]
[406835843,1772215492727,-500.0,8.552e-05,2]
[406835844,1772215492756,-500.0,8.552e-05,2]
[406835845,1772215637315,800.0,8.7e-05,3]
[406835846,1772215639396,1700.0,8.8e-05,3]
[406835847,1772215641546,2600.0,8.9e-05,3]
[406835848,1772215643667,3500.0,9e-05,3]
[406835862,1772215831800,-220.0,8.45e-05,2]
[406835863,1772215831810,-151.0,8.45e-05,2]
[406835864,1772215831819,-204.75,8.451e-05,2]
[406835865,1772215831850,-295.25,8.451e-05,2]
[406835866,1772215831860,-1129.26542341,8.451e-05,2]
[406835867,1772215831871,-70.73457659,8.451e-05,2]
[406835868,1772215831880,-300.0,8.452e-05,2]
[406835869,1772215831889,-500.0,8.452e-05,2]
[406835870,1772215831899,-500.0,8.452e-05,2]
[406835871,1772215831908,-500.0,8.452e-05,2]
[406835872,1772215831917,-291.88140454,8.452e-05,2]
[406835873,1772215831929,-208.11859546,8.452e-05,2]
[406835874,1772215831939,-500.0,8.452e-05,2]
[406835875,1772215831948,-236.31506967,8.452e-05,2]
[406835876,1772215831959,-263.68493033,8.452e-05,2]
[406835877,1772215831968,-500.0,8.452e-05,2]
[406835878,1772215831977,-490.61719967,8.452e-05,2]
[406835879,1772215831988,-9.38280033,8.452e-05,2]
[406835880,1772215831997,-500.0,8.452e-05,2]
[406835881,1772215832006,-233.87512393,8.452e-05,2]
[406835882,1772215832015,-500.0,8.452e-05,2]
[406835883,1772215832024,-500.0,8.452e-05,2]
[406835884,1772215832032,-329.58385916,8.452e-05,2]
[406835885,1772215832043,-170.41614084,8.452e-05,2]
[406835886,1772215832053,-500.0,8.452e-05,2]
[406835887,1772215832062,-500.0,8.452e-05,2]
[406835889,1772215832071,-500.0,8.452e-05,2]
[406835891,1772215832080,-37.58144137,8.452e-05,2]
[406835892,1772215832091,-462.41855863,8.452e-05,2]
[406835893,1772215832100,-500.0,8.452e-05,2]
[406835894,1772215832109,-192.05642443,8.452e-05,2]
[406835895,1772215832118,-741.58937218,8.453e-05,2]
[406835899,1772215837791,-637.14682304,8.453e-05,2]
[406835900,1772215837804,-313.18321014,8.453e-05,2]
[406835901,1772215837815,-645822.93810102,8.453e-05,2]
[406835902,1772215837837,-1548.78893979,8.453e-05,2]
[406835903,1772215837850,-6814.94453654,8.453e-05,2]
[406835904,1772215837891,-2181.6451335,8.453e-05,2]
[406835905,1772215837902,-1327.76524012,8.453e-05,2]
[406835906,1772215837913,-310077.99877269,8.453e-05,2]
[406835907,1772215837948,-4000.0,8.453e-05,2]
[406835908,1772215837959,-863.73012948,8.453e-05,2]
[406835909,1772215837969,-12496.31740234,8.453e-05,2]
[406835910,1772215837980,-65004.03976872,8.453e-05,2]
[406835976,1772215839959,-354.14800379,8.453e-05,2]
[406835977,1772215840014,-947815.76456665,8.453e-05,2]
[406835978,1772215840024,-2183.91,8.548e-05,2]
[406835979,1772215840033,-250.0,8.552e-05,2]
[406835980,1772215840042,-2181.6451336,8.552e-05,2]
[406835981,1772215840055,-180.0,8.553e-05,2]
[406835982,1772215840064,-1521.68,8.649e-05,2]
[406835983,1772215840073,-500.0,8.673e-05,2]
[406835984,1772215840083,-500.0,8.673e-05,2]
[406835985,1772215840092,-151.0,8.69e-05,2]
[406835986,1772215840101,-452138.5788,8.693e-05,2]
[406835987,1772215840111,-500.0,8.795e-05,2]
[406835988,1772215840119,-32885.2992,8.833e-05,2]
[406835989,1772215840129,-366.552258,8.936e-05,2]
[406835990,1772215840138,-209599.91362995,9.091e-05,2]
[406835991,1772215840147,-1000.0,9.221e-05,2]
[406835992,1772215840156,-1000.0,9.221e-05,2]
[406835993,1772215840167,-3199.5614149,9.221e-05,2]
[406835994,1772215840176,-375.94211011,9.296e-05,2]
[406835995,1772215840186,-1500.0,9.296e-05,2]
[406835996,1772215840195,-1680.0,9.297e-05,2]
[406835997,1772215840205,-150.99,9.406e-05,2]
[406835998,1772215840213,-9999.99,9.406e-05,2]
[406835999,1772215840223,-658.73,9.406e-05,2]
[406836000,1772215840233,-9999.99,9.406e-05,2]
[406836001,1772215840243,-250.0,9.406e-05,2]
[406836002,1772215840253,-250.0,9.406e-05,2]
[406836003,1772215840264,-488.0,9.493e-05,2]
[406836004,1772215840274,-299.99,9.493e-05,2]
[406836005,1772215840284,-468.0,9.562e-05,2]
[406836006,1772215840294,-468.0,9.617e-05,2]
[406836007,1772215840304,-283.13,9.636e-05,2]
[406836008,1772215840313,-29999.99,9.67e-05,2]
[406836009,1772215840322,-9999.99,9.67e-05,2]
[406836010,1772215840331,-468.0,9.672e-05,2]
[406836011,1772215840340,-150.0,9.726e-05,2]
[406836012,1772215840349,-500.0,9.726e-05,2]
[406836013,1772215840358,-150.0,9.726e-05,2]
[406836014,1772215840367,-205.97279745,9.726e-05,2]
[406836015,1772215840376,-150.0,9.726e-05,2]
[406836016,1772215840385,-150.0,9.726e-05,2]
[406836017,1772215840394,-500.0,9.726e-05,2]
[406836018,1772215840405,-500.0,9.726e-05,2]
[406836019,1772215840415,-150.0,9.726e-05,2]
[406836020,1772215840427,-468.0,9.726e-05,2]
[406836021,1772215840437,-1500.0,9.768e-05,2]
[406836022,1772215840446,-1500.0,9.768e-05,2]
[406836023,1772215840455,-150.0,9.781e-05,2]
[406836024,1772215840464,-500.0,9.781e-05,2]
[406836025,1772215840473,-150.0,9.781e-05,2]
[406836026,1772215840483,-155.24410738,9.781e-05,2]
[406836027,1772215840491,-500.0,9.781e-05,2]
[406836028,1772215840500,-500.0,9.781e-05,2]
[406836029,1772215840510,-468.0,9.781e-05,2]
[406836030,1772215840519,-200.0,9.836e-05,2]
[406836031,1772215840528,-500.0,9.836e-05,2]
[406836032,1772215840538,-238.75555333,9.836e-05,2]
[406836034,1772215840547,-500.0,9.836e-05,2]
[406836035,1772215840556,-500.0,9.836e-05,2]
[406836036,1772215840565,-468.0,9.836e-05,2]
[406836037,1772215840574,-283.90698305,9.863e-05,2]
[406836038,1772215840583,-500.0,9.89e-05,2]
[406836039,1772215840592,-500.0,9.89e-05,2]
[406836040,1772215840602,-500.0,9.89e-05,2]
[406836041,1772215840611,-468.0,9.891e-05,2]
[406836042,1772215840620,-1891.0,9.915e-05,2]
[406836043,1772215840630,-447.0,9.935e-05,2]
[406836044,1772215840639,-500.0,9.945e-05,2]
[406836045,1772215840648,-500.0,9.945e-05,2]
[406836046,1772215840657,-500.0,9.945e-05,2]
[406836047,1772215840667,-468.0,9.946e-05,2]
[406836048,1772215840676,-729.09372172,9.959e-05,2]
[406836049,1772215840685,-500.0,0.0001,2]
[406836050,1772215840694,-500.0,0.0001,2]
[406836051,1772215840703,-500.0,0.0001,2]
[406836052,1772215840713,-2076.60426124,0.0001,2]
[406836053,1772215840725,-151.0,0.0001,2]
[406836054,1772215840735,-151.0,0.0001,2]
[406836055,1772215840747,-151.0,0.0001,2]
[406836056,1772215840757,-151.0,0.0001,2]
[406836057,1772215840768,-151.0,0.0001,2]
[406836058,1772215840777,-151.0,0.0001,2]
[406836059,1772215840786,-151.0,0.0001,2]
[406836060,1772215840795,-151.0,0.0001,2]
[406836061,1772215840809,-151.0,0.0001,2]
[406836062,1772215840818,-151.0,0.0001,2]
[406836063,1772215840829,-151.0,0.0001,2]
[406836064,1772215840838,-151.0,0.0001,2]
[406836065,1772215840847,-151.0,0.0001,2]
[406836066,1772215840856,-151.0,0.0001,2]
[406836067,1772215840865,-151.0,0.0001,2]
[406836068,1772215840875,-151.0,0.0001,2]
[406836069,1772215840886,-151.0,0.0001,2]
[406836070,1772215840895,-151.0,0.0001,2]
[406836071,1772215840904,-151.0,0.0001,2]
[406836072,1772215840914,-151.0,0.0001,2]
[406836073,1772215840923,-423.54897496,0.0001,2]
[406836074,1772215840932,-468.0,0.0001,2]
[406836075,1772215840941,-4000.0,0.00010027,2]
[406836076,1772215840950,-395.41955894,0.00010055,2]
[406836077,1772215840960,-500.0,0.00010055,2]
[406836078,1772215840969,-500.0,0.00010055,2]
[406836079,1772215840978,-468.0,0.00010055,2]
[406836080,1772215840987,-500.0,0.0001011,2]
[406836081,1772215840996,-150.0,0.0001011,2]
[406836082,1772215841005,-468.0,0.0001011,2]
[406836083,1772215841014,-500.0,0.00010164,2]
[406836084,1772215841023,-468.0,0.00010165,2]
[406836085,1772215841032,-329.97559659,0.00010214,2]
[406836086,1772215841041,-500.0,0.00010219,2]
[406836087,1772215841051,-468.0,0.0001022,2]
[406836088,1772215841061,-1946.0,0.00010226,2]
[406836089,1772215841070,-500.0,0.00010274,2]
[406836090,1772215841079,-468.0,0.00010274,2]
[406836091,1772215841088,-4000.0,0.00010278,2]
[406836092,1772215841097,-500.0,0.000103,2]
[406836093,1772215841106,-500.0,0.000103,2]
[406836094,1772215841115,-500.0,0.000103,2]
[406836095,1772215841124,-500.0,0.000103,2]
[406836096,1772215841132,-500.0,0.000103,2]
[406836097,1772215841141,-500.0,0.000103,2]
[406836098,1772215841150,-500.0,0.000103,2]
[406836099,1772215841160,-500.0,0.000103,2]
[406836100,1772215841169,-500.0,0.000103,2]
[406836101,1772215841178,-500.0,0.000103,2]
[406836102,1772215841187,-500.0,0.000103,2]
[406836103,1772215841196,-500.0,0.000103,2]
[406836104,1772215841205,-500.0,0.000103,2]
[406836105,1772215841215,-727.27152182,0.000103,2]
[406836106,1772215841224,-500.0,0.000103,2]
[406836107,1772215841233,-500.0,0.000103,2]
[406836108,1772215841241,-500.0,0.000103,2]
[406836109,1772215841250,-500.0,0.000103,2]
[406836110,1772215841259,-500.0,0.000103,2]
[406836111,1772215841268,-500.0,0.000103,2]
[406836112,1772215841277,-500.0,0.000103,2]
[406836113,1772215841286,-500.0,0.000103,2]
[406836114,1772215841295,-500.0,0.000103,2]
[406836115,1772215841306,-500.0,0.000103,2]
[406836116,1772215841315,-500.0,0.000103,2]
[406836117,1772215841324,-500.0,0.000103,2]
[406836118,1772215841334,-500.0,0.000103,2]
[406836119,1772215841343,-500.0,0.000103,2]
[406836120,1772215841352,-800.0,0.000103,2]
[406836121,1772215841361,-2000.0,0.00010316,2]
[406836122,1772215841370,-2000.0,0.00010316,2]
[406836123,1772215841379,-500.0,0.00010329,2]
[406836124,1772215841388,-468.0,0.00010329,2]
[406836125,1772215841397,-500.0,0.00010384,2]
[406836126,1772215841406,-468.0,0.00010384,2]
[406836127,1772215841416,-500.0,0.00010384,2]
[406836128,1772215841425,-500.0,0.00010384,2]
[406836129,1772215841433,-500.0,0.00010384,2]
[406836130,1772215841442,-500.0,0.00010384,2]
[406836131,1772215841451,-500.0,0.00010438,2]
[406836132,1772215841460,-468.0,0.00010439,2]
[406836133,1772215841469,-500.0,0.00010439,2]
[406836134,1772215841478,-500.0,0.00010439,2]
[406836135,1772215841486,-500.0,0.00010439,2]
[406836136,1772215841495,-500.0,0.00010439,2]
[406836137,1772215841504,-500.0,0.00010493,2]
[406836138,1772215841513,-468.0,0.00010494,2]
[406836139,1772215841522,-500.0,0.00010494,2]
[406836140,1772215841531,-164.37590583,0.00010494,2]
[406836141,1772215841540,-500.0,0.00010494,2]
[406836142,1772215841549,-500.0,0.00010494,2]
[406836143,1772215841559,-453.71644531,0.00010497,2]
[406836144,1772215841568,-4000.0,0.00010529,2]
[406836145,1772215841577,-500.0,0.00010548,2]
[406836146,1772215841591,-468.0,0.00010548,2]
[406836147,1772215841605,-500.0,0.00010548,2]
[406836148,1772215841614,-500.0,0.00010548,2]
[406836149,1772215841623,-500.0,0.00010548,2]
[406836150,1772215841632,-500.0,0.00010603,2]
[406836151,1772215841641,-468.0,0.00010603,2]
[406836152,1772215841651,-500.0,0.00010603,2]
[406836153,1772215841660,-500.0,0.00010603,2]
[406836154,1772215841670,-500.0,0.00010603,2]
[406836155,1772215841679,-563.0,0.00010658,2]
[406836156,1772215841688,-468.0,0.00010658,2]
[406836157,1772215841698,-500.0,0.00010658,2]
[406836158,1772215841707,-500.0,0.00010658,2]
[406836159,1772215841716,-399.73245123,0.00010658,2]
[406836160,1772215841727,-468.0,0.00010713,2]
[406836161,1772215841737,-500.0,0.00010713,2]
[406836162,1772215841746,-500.0,0.00010713,2]
[406836163,1772215841755,-468.0,0.00010767,2]
[406836164,1772215841765,-500.0,0.00010768,2]
[406836165,1772215841774,-500.0,0.00010768,2]
[406836166,1772215841785,-4000.0,0.00010779,2]
[406836167,1772215841796,-486.0,0.00010822,2]
[406836168,1772215841807,-500.0,0.00010822,2]
[406836169,1772215841816,-500.0,0.00010822,2]
[406836170,1772215841826,-500.0,0.00010829,2]
[406836171,1772215841835,-440.69410624,0.00010829,2]
[406836172,1772215841845,-320.22794059,0.00010864,2]
[406836173,1772215841854,-1500.0,0.00010864,2]
[406836174,1772215841864,-500.0,0.00010877,2]
[406836175,1772215841873,-500.0,0.00010877,2]
[406836176,1772215841882,-497.09622115,0.00010932,2]
[406836177,1772215841892,-500.0,0.00010932,2]
[406836178,1772215841901,-150.0,0.00010959,2]
[406836179,1772215841911,-14432.92,0.00010959,2]
[406836180,1772215841921,-500.0,0.00010987,2]
[406836181,1772215841930,-4000.0,0.0001103,2]
[406836182,1772215841939,-500.0,0.00011042,2]
[406836183,1772215841948,-500.0,0.00011096,2]
[406836184,1772215841958,-8702.52270989,0.00011099,2]
[406836185,1772215841967,-8702.5227098,0.00011099,2]
[406836186,1772215841976,-8702.5227098,0.00011099,2]
[406836187,1772215841986,-500.0,0.00011151,2]
[406836188,1772215841995,-250.0,0.00011166,2]
[406836189,1772215842004,-500.0,0.00011206,2]
[406836190,1772215842014,-500.0,0.00011261,2]
[406836191,1772215842023,-500.0,0.00011316,2]
[406836192,1772215842032,-357.0,0.0001137,2]
[406836193,1772215842041,-1088.21122201,0.00011377,2]
[406836194,1772215842050,-2315.62,0.00011507,2]
[406836195,1772215842059,-8702.5227098,0.00011602,2]
[406836196,1772215842069,-956.59,0.00012008,2]
[406836197,1772215842078,-52754.8,0.00012055,2]
[406836198,1772215842090,-1488.080409,0.00012388,2]
[406836199,1772215842100,-956.59,0.00012525,2]
[406836200,1772215842109,-300.75583,0.00012587,2]
[406836201,1772215842284,-8702.5227098,0.00012652,2]
[406836202,1772215842294,-500.0,0.0001289,2]
[406836203,1772215842307,-500.0,0.0001289,2]
[406836204,1772215842318,-500.0,0.0001289,2]
[406836205,1772215842327,-500.0,0.0001289,2]
[406836206,1772215842337,-500.0,0.0001289,2]
[406836207,1772215842346,-500.0,0.0001289,2]
[406836208,1772215842355,-500.0,0.0001289,2]
[406836209,1772215842364,-500.0,0.0001289,2]
[406836210,1772215842373,-500.0,0.0001289,2]
[406836211,1772215842383,-500.0,0.0001289,2]
[406836212,1772215842393,-500.0,0.0001289,2]
[406836213,1772215842402,-500.0,0.0001289,2]
[406836214,1772215842411,-500.0,0.0001289,2]
[406836215,1772215842420,-500.0,0.0001289,2]
[406836216,1772215842430,-500.0,0.0001289,2]
[406836217,1772215842440,-500.0,0.0001289,2]
[406836218,1772215842449,-500.0,0.0001289,2]
[406836219,1772215842459,-500.0,0.0001289,2]
[406836220,1772215842469,-869.88788903,0.0001289,2]
[406836221,1772215842478,-611.11529278,0.0001289,2]
[406836222,1772215842487,-500.0,0.0001289,2]
[406836223,1772215842497,-500.0,0.0001289,2]
[406836224,1772215842507,-500.0,0.0001289,2]
[406836225,1772215842517,-500.0,0.0001289,2]
[406836226,1772215842527,-500.0,0.0001289,2]
[406836227,1772215842537,-500.0,0.0001289,2]
[406836228,1772215842547,-500.0,0.0001289,2]
[406836229,1772215842557,-500.0,0.0001289,2]
[406836230,1772215842566,-500.0,0.0001289,2]
[406836231,1772215842575,-500.0,0.0001289,2]
[406836232,1772215842586,-500.0,0.0001289,2]
[406836233,1772215842597,-500.0,0.0001289,2]
[406836234,1772215842607,-500.0,0.0001289,2]
[406836235,1772215842617,-500.0,0.0001289,2]
[406836236,1772215842626,-500.0,0.0001289,2]
[406836237,1772215842637,-500.0,0.0001289,2]
[406836238,1772215842647,-500.0,0.0001289,2]
[406836239,1772215842656,-500.0,0.0001289,2]
[406836240,1772215842666,-500.0,0.0001289,2]
[406836241,1772215842675,-1649.88961964,0.00013,15]
[406836242,1772215842685,-956.59,0.00013042,2]
[406836243,1772215842696,-5368.66478509,0.0001305,2]
[406836244,1772215842706,-2076.60426122,0.00013177,2]
[406836245,1772215842716,-429.651187,0.00013374,2]
[406836246,1772215842729,-157.093824,0.00013404,2]
[406836247,1772215842739,-313.031579,0.00013406,2]
[406836248,1772215842750,-1000.0,0.000135,2]
[406836250,1772215842760,-3199.56141489,0.00013511,2]
[406836251,1772215842772,-375.94211009,0.00013548,2]
[406836252,1772215842781,-956.59,0.00013559,2]
[406836253,1772215842791,-28931.99987184,0.0001358,2]
[406836254,1772215842802,-500.0,0.00013698,2]
[406836255,1772215842812,-500.0,0.00013698,2]
[406836257,1772215842822,-500.0,0.00013698,2]
[406836258,1772215842833,-500.0,0.00013698,2]
[406836260,1772215842843,-500.0,0.00013698,2]
[406836262,1772215842853,-500.0,0.00013698,2]
[406836264,1772215842863,-500.0,0.00013698,2]
[406836266,1772215842873,-500.0,0.00013698,2]
[406836268,1772215842883,-500.0,0.00013698,2]
[406836270,1772215842892,-500.0,0.00013698,2]
[406836273,1772215842901,-500.0,0.00013698,2]
[406836274,1772215842911,-500.0,0.00013698,2]
[406836275,1772215842921,-500.0,0.00013698,2]
[406836276,1772215842932,-500.0,0.00013698,2]
[406836277,1772215842942,-500.0,0.00013698,2]
[406836278,1772215842951,-500.0,0.00013698,2]
[406836279,1772215842962,-500.0,0.00013698,2]
[406836280,1772215842972,-500.0,0.00013698,2]
[406836281,1772215842982,-500.0,0.00013698,2]
[406836282,1772215842992,-500.0,0.00013698,2]
[406836283,1772215843001,-500.0,0.00013698,2]
[406836284,1772215843011,-500.0,0.00013698,2]
[406836285,1772215843021,-500.0,0.00013698,2]
[406836286,1772215843031,-500.0,0.00013698,2]
[406836287,1772215843041,-500.0,0.00013698,2]
[406836288,1772215843051,-500.0,0.00013698,2]
[406836289,1772215843062,-500.0,0.00013698,2]
[406836290,1772215843072,-500.0,0.00013698,2]
[406836291,1772215843085,-500.0,0.00013698,2]
[406836292,1772215843094,-500.0,0.00013698,2]
[406836293,1772215843104,-500.0,0.00013698,2]
[406836294,1772215843114,-500.0,0.00013698,2]
[406836295,1772215843123,-500.0,0.00013698,2]
[406836296,1772215843134,-278.70046284,0.00013698,2]
[406836298,1772215843144,-647.78,0.00013698,2]
[406836299,1772215843154,-500.0,0.00013698,2]
[406836300,1772215843163,-500.0,0.00013698,2]
[406836301,1772215843173,-500.0,0.00013698,2]
[406836302,1772215843182,-500.0,0.00013698,2]
[406836304,1772215843192,-500.0,0.00013698,2]
[406836306,1772215843201,-500.0,0.00013698,2]
[406836307,1772215843210,-500.0,0.00013698,2]
[406836308,1772215843219,-500.0,0.00013698,2]
[406836309,1772215843229,-500.0,0.00013698,2]
[406836310,1772215843238,-563.9784206,0.00013698,2]
[406836311,1772215843247,-500.0,0.00013698,2]
[406836312,1772215843256,-500.0,0.00013698,2]
[406836313,1772215843265,-500.0,0.00013698,2]
[406836314,1772215843275,-500.0,0.00013698,2]
[406836315,1772215843284,-500.0,0.00013698,2]
[406836316,1772215843293,-500.0,0.00013698,2]
[406836317,1772215843304,-500.0,0.00013698,2]
[406836318,1772215843313,-500.0,0.00013698,2]
[406836319,1772215843322,-500.0,0.00013698,2]
[406836320,1772215843331,-500.0,0.00013698,2]
[406836321,1772215843340,-500.0,0.00013698,2]
[406836322,1772215843350,-500.0,0.00013698,2]
[406836323,1772215843359,-500.0,0.00013698,2]
[406836324,1772215843368,-500.0,0.00013698,2]
[406836325,1772215843378,-500.0,0.00013698,2]
[406836326,1772215843387,-511.11,0.00013698,2]
[406836327,1772215843397,-500.0,0.00013698,2]
[406836328,1772215843406,-500.0,0.00013698,2]
[406836329,1772215843415,-500.0,0.00013698,2]
[406836330,1772215843424,-500.0,0.00013698,2]
[406836331,1772215843434,-500.0,0.00013698,2]
[406836333,1772215843443,-500.0,0.00013698,2]
[406836335,1772215843453,-500.0,0.00013698,2]
[406836337,1772215843462,-500.0,0.00013698,2]
[406836338,1772215843473,-500.0,0.00013698,2]
[406836339,1772215843482,-500.0,0.00013698,2]
[406836340,1772215843492,-500.0,0.00013698,2]
[406836341,1772215843501,-500.0,0.00013698,2]
[406836342,1772215843512,-500.0,0.00013698,2]
[406836343,1772215843523,-500.0,0.00013698,2]
[406836344,1772215843533,-500.0,0.00013698,2]
[406836345,1772215843542,-500.0,0.00013698,2]
[406836346,1772215843552,-479.11436236,0.00013698,2]
[406836347,1772215843561,-500.0,0.00013698,2]
[406836348,1772215843570,-500.0,0.00013698,2]
[406836349,1772215843580,-500.0,0.00013698,2]
[406836350,1772215843589,-500.0,0.00013698,2]
[406836351,1772215843598,-500.0,0.00013698,2]
[406836352,1772215843607,-500.0,0.00013698,2]
[406836353,1772215843617,-500.0,0.00013698,2]
[406836354,1772215843626,-500.0,0.00013698,2]
[406836355,1772215843636,-500.0,0.00013698,2]
[406836356,1772215843645,-500.0,0.00013698,2]
[406836357,1772215843655,-500.0,0.00013698,2]
[406836358,1772215843664,-500.0,0.00013698,2]
[406836359,1772215843673,-500.0,0.00013698,2]
[406836360,1772215843683,-500.0,0.00013698,2]
[406836361,1772215843692,-500.0,0.00013698,2]
[406836362,1772215843701,-500.0,0.00013698,2]
[406836363,1772215843710,-500.0,0.00013698,2]
[406836364,1772215843728,-500.0,0.00013698,2]
[406836365,1772215843742,-500.0,0.00013698,2]
[406836366,1772215843755,-500.0,0.00013698,2]
[406836367,1772215843768,-500.0,0.00013698,2]
[406836368,1772215843780,-500.0,0.00013698,2]
[406836369,1772215843793,-500.0,0.00013698,2]
[406836370,1772215843805,-500.0,0.00013698,2]
[406836371,1772215843818,-500.0,0.00013698,2]
[406836372,1772215843832,-500.0,0.00013698,2]
[406836373,1772215843845,-500.0,0.00013698,2]
[406836374,1772215843857,-500.0,0.00013698,2]